bitfinex/quotes_ETHUSD_20251218
["timestamp","ask_amount","ask_price","bid_price","bid_amount"]
[1766079943345,0.0815545,2845.9,2843.8,8.77785062]
[1766079943346,0.0815545,2845.7,2843.8,8.77785062]
[1766079943534,0.0815545,2845.5,2844.0,7.7002]
[1766079943732,0.0815545,2845.3,2844.1,3.51593814]
[1766079943960,0.0815545,2845.1,2844.0,0.587]
[1766079944300,0.0815545,2845.3,2844.0,7.9246]
[1766079944430,0.0815545,2845.3,2844.3,3.51575696]
[1766079944631,0.405504,2845.6,2844.4,7.7002]
[1766079944632,0.0815545,2845.6,2844.4,7.7002]
[1766079944837,0.0815545,2845.6,2844.5,4.46515633]
[1766079945028,0.0815545,2845.9,2844.5,7.98071266]
[1766079945234,0.0815545,2845.5,2844.4,0.587]
[1766079945534,0.0815545,2845.5,2844.4,11.44024488]
[1766079945758,0.0815545,2845.7,2844.3,0.3626]
[1766079946083,0.0815545,2845.7,2843.9,0.87778506]
[1766079946084,0.0815545,2845.4,2844.1,3.51601917]
[1766079946234,0.0815545,2845.2,2844.0,0.587]
[1766079946638,0.0815545,2845.0,2844.0,0.587]
[1766079946855,0.0815545,2845.0,2844.1,7.0320331]
[1766079947365,0.0815545,2845.5,2844.3,0.3626]
[1766079947541,0.0815545,2845.5,2844.4,7.3376]
[1766079947744,0.0815545,2845.5,2844.6,7.3376]
[1766079948067,0.6685545,2845.9,2844.6,7.7002]
[1766079948862,0.6685545,2845.9,2844.7,3.51530917]
[1766079949886,0.0815545,2845.3,2843.9,7.7002]
[1766079950182,0.0815545,2845.1,2844.3,3.51573655]
[1766079950369,0.0815545,2845.3,2844.1,7.7002]
[1766079950571,0.0815545,2845.3,2844.5,3.51549251]
[1766079950750,0.0815545,2845.5,2844.5,3.51555633]
[1766079950950,0.0815545,2845.5,2844.5,7.03111266]
[1766079951260,0.0815545,2845.5,2844.5,3.51555633]
[1766079951979,0.0825545,2845.9,2844.6,7.7002]
[1766079952384,0.0825545,2845.9,2844.6,9.23203127]
[1766079952881,0.0825545,2845.9,2844.7,3.51530917]
[1766079953086,0.0825545,2845.9,2844.6,3.51536864]
[1766079953460,0.0815545,2845.7,2844.5,3.51549728]
[1766079953781,0.0815545,2845.5,2844.4,4.10259554]
[1766079954081,0.405504,2845.6,2844.5,3.51549046]
[1766079954298,0.405504,2845.6,2844.6,3.51541846]
[1766079954582,0.0815545,2845.7,2844.7,0.3626]
[1766079954953,0.0815545,2845.7,2844.8,3.5151856]
[1766079955152,0.0815545,2845.7,2844.4,0.46438023]
[1766079955153,0.0815545,2845.5,2844.4,0.46438023]
[1766079955370,0.0815545,2845.5,2844.5,0.587]
[1766079955577,0.0815545,2845.5,2844.5,4.10253134]
[1766079955777,0.0815545,2845.5,2844.5,1.39527053]
[1766079955981,0.0815545,2845.5,2844.5,0.587]
[1766079956395,0.0815545,2845.3,2844.1,3.51595574]
[1766079956608,0.0815545,2845.1,2844.1,4.10295574]
[1766079956810,0.0815545,2845.1,2844.2,3.51590159]
[1766079957158,0.0815545,2845.1,2844.2,7.03182873]
[1766079957363,0.992504,2845.6,2844.2,4.64038446]
[1766079957668,0.0815545,2845.3,2844.2,4.64038446]
[1766079957867,0.0815545,2845.3,2844.2,3.87850159]
[1766079958086,0.0815545,2845.3,2844.2,7.39442873]
[1766079958578,0.0815545,2845.5,2844.3,8.2872]
[1766079959091,0.992504,2845.6,2844.4,7.03135986]
[1766079959259,0.405504,2845.6,2844.4,7.03135986]
[1766079959794,0.001,2845.5,2844.4,7.03135986]
[1766079960188,0.4880585,2845.5,2844.3,3.51575159]
[1766079960503,0.0825545,2845.5,2844.4,0.587]
[1766079960918,0.001,2845.5,2844.7,0.3584]
[1766079961071,0.001,2845.5,2844.8,12.2124856]
[1766079961276,0.001,2845.5,2844.2,3.51591996]
[1766079961500,0.001,2845.5,2844.3,0.587]
[1766079961501,0.0815545,2845.4,2844.3,0.587]
[1766079961874,0.0815545,2845.2,2844.3,0.587]
[1766079962287,0.0815545,2845.0,2844.0,3.51610248]
[1766079962504,0.0815545,2845.2,2844.1,0.587]
[1766079962705,0.001,2845.5,2844.7,3.51527204]
[1766079962882,0.001,2845.5,2844.7,0.587]
[1766079963085,0.001,2845.9,2845.2,7.7519]
[1766079963287,0.001,2845.9,2845.3,1.72059]
[1766079963490,0.001,2846.6,2845.8,7.7519]
[1766079963692,0.001,2846.6,2845.9,1.40978023]
[1766079963995,0.001,2846.6,2846.0,0.587]
[1766079964524,0.001,2846.6,2846.1,0.587]
[1766079965022,0.001,2846.6,2846.2,3.51345653]
[1766079965486,0.001,2846.6,2845.8,0.46438023]
[1766079965807,0.001,2846.6,2846.0,0.46438023]
[1766079965981,0.001,2846.6,2846.1,3.51354896]
[1766079967200,0.001,2846.6,2846.1,7.02712894]
[1766079967400,0.001,2847.1,2846.3,7.7519]
[1766079967601,0.001,2847.1,2846.4,8.6973]
[1766079967808,0.001,2847.1,2846.5,0.86973]
[1766079967981,0.001,2847.6,2846.8,0.3584]
[1766079968181,0.001,2847.6,2846.9,0.586]
[1766079968380,0.001,2847.6,2847.0,0.586]
[1766079969132,0.001,2847.6,2847.0,7.96924062]
[1766079969288,0.001,2848.0,2847.0,7.96924062]
[1766079969289,0.001,2848.0,2847.6,0.82278023]
[1766079969483,0.001,2848.8,2847.9,7.7519]
[1766079969689,0.001,2848.8,2848.0,7.7519]
[1766079969900,0.0815545,2848.7,2848.0,0.584]
[1766079970109,0.0815545,2848.7,2847.9,0.586]
[1766079970326,0.0815545,2848.5,2847.4,0.3584]
[1766079970529,0.0815545,2848.1,2846.7,3.51273302]
[1766079970685,0.0815545,2848.1,2846.9,3.51252103]
[1766079970886,0.0815545,2847.9,2846.9,3.51252103]
[1766079971125,0.0815545,2847.7,2846.2,0.3584]
[1766079971337,0.0815545,2847.5,2846.3,0.586]
[1766079971612,0.0815545,2847.5,2845.7,12.2918514]
[1766079971613,0.0815545,2847.1,2845.9,3.51379137]
[1766079971821,0.0815545,2846.9,2846.0,0.586]
[1766079971985,0.0815545,2846.9,2846.1,3.51357414]
[1766079972186,0.0815545,2846.9,2846.2,0.586]
[1766079972385,0.0815545,2847.1,2846.2,0.586]
[1766079972582,0.0815545,2847.1,2846.3,3.51333263]
[1766079972787,0.0815545,2848.1,2846.9,0.3748]
[1766079973016,0.0815545,2848.1,2847.0,8.4603]
[1766079973316,0.46438023,2848.4,2847.2,0.3748]
[1766079973624,0.0815545,2848.7,2847.4,8.2491]
[1766079973926,0.0815545,2848.6,2847.5,0.9608]
[1766079974125,0.0815545,2848.6,2847.6,0.88351]
[1766079974292,0.0815545,2848.6,2847.5,0.9608]
[1766079974293,0.001,2848.8,2847.5,0.9608]
[1766079974708,0.001,2848.8,2847.7,8.2491]
[1766079975230,0.001,2848.8,2847.8,3.51148254]
[1766079975389,0.001,2848.8,2847.9,0.9608]
[1766079975589,0.001,2848.8,2848.1,7.8743]
[1766079975911,0.001,2848.8,2848.2,8.71348023]
[1766079976216,0.001,2848.9,2848.4,0.3748]
[1766079977118,0.001,2850.0,2849.1,7.01976062]
[1766079977319,0.001,2850.0,2849.2,0.586]
[1766079977520,0.001,2850.0,2849.3,0.3748]
[1766079977825,0.001,2850.0,2849.3,8.2491]
[1766079978030,0.001,2850.0,2849.5,8.2491]
[1766079978216,0.001,2851.0,2849.6,0.9608]
[1766079978417,0.001,2851.1,2849.9,0.3748]
[1766079978715,0.001,2851.1,2850.3,0.83918023]
[1766079978925,0.001,2851.1,2850.3,1.42518023]
[1766079979243,0.001,2851.1,2849.7,8.2491]
[1766079979411,0.001,2851.0,2849.2,9.21272344]
[1766079979594,0.001,2851.0,2849.6,7.8743]
[1766079979798,0.001,2851.0,2849.8,0.46438023]
[1766079979799,0.0815545,2850.7,2849.8,0.46438023]
[1766079980024,0.0815545,2850.7,2849.7,8.4603]
[1766079980025,0.0815545,2850.5,2849.7,8.4603]
[1766079980226,0.0815545,2850.3,2849.5,0.3748]
[1766079980429,0.0815545,2850.2,2849.6,0.586]
[1766079980631,0.0825545,2850.7,2849.6,0.586]
[1766079980632,0.0815545,2850.3,2849.6,0.586]
[1766079980828,0.0815545,2850.7,2849.7,0.3748]
[1766079981130,0.0815545,2850.7,2849.8,8.2491]
[1766079982028,0.0815545,2850.5,2849.8,8.2491]
[1766079982232,0.0815545,2851.3,2849.8,8.2491]
[1766079982233,0.0815545,2851.3,2850.1,7.8743]
[1766079982411,0.001,2851.1,2850.5,0.3748]
[1766079982611,0.001,2851.1,2850.7,0.3748]
[1766079983732,0.001,2851.1,2850.2,0.3748]
[1766079983912,0.0815545,2851.0,2850.3,0.585]
[1766079984507,0.0815545,2850.9,2850.0,0.585]
[1766079984815,0.0815545,2850.5,2849.7,0.3748]
[1766079985132,0.0815545,2850.2,2849.3,0.3748]
[1766079985333,0.0815545,2850.0,2849.3,0.585]
[1766079985673,0.0815545,2850.4,2849.4,8.2841951]
[1766079985822,0.0815545,2850.5,2849.3,11.38388394]
[1766079986024,0.0815545,2850.2,2849.4,0.585]
[1766079986650,0.0815545,2850.5,2849.5,8.2491]
[1766079986857,0.0815545,2850.7,2849.6,8.2491]
[1766079987044,0.0815545,2850.5,2849.6,8.2491]
[1766079987348,0.0815545,2850.6,2849.8,0.3748]
[1766079987550,0.0815545,2850.4,2849.4,8.2491]
[1766079987874,0.0815545,2850.2,2849.5,0.585]
[1766079988092,0.0815545,2850.0,2849.1,0.46438023]
[1766079988362,0.0815545,2849.6,2848.7,4.09530453]
[1766079988534,0.0815545,2849.9,2848.8,0.3748]
[1766079988858,0.0815545,2849.7,2848.8,0.3748]
[1766079989059,0.0815545,2849.7,2848.8,3.88503225]
[1766079989221,0.0815545,2849.9,2848.9,0.585]
[1766079989559,0.0815545,2849.7,2849.0,0.585]
[1766079989862,0.0815545,2849.9,2849.0,0.585]
[1766079990072,0.0815545,2849.9,2849.0,0.9598]
[1766079990364,0.0815545,2849.7,2848.8,0.3748]
[1766079990531,0.0815545,2849.5,2849.0,0.585]
[1766079990923,0.0825545,2849.7,2849.0,0.585]
[1766079991130,0.001,2849.7,2849.1,8.2491]
[1766079991541,0.001,2849.7,2848.7,7.02071642]
[1766079991542,0.001,2849.7,2848.6,7.8743]
[1766079991728,0.001,2849.7,2848.9,8.2491]
[1766079991922,0.001,2849.7,2849.1,8.2491]
[1766079992166,0.001,2849.7,2848.7,0.78743]
[1766079992332,0.001,2849.7,2849.0,8.2491]
[1766079992532,0.001,2849.7,2849.1,0.3748]
[1766079992732,0.001,2849.7,2849.2,0.585]
[1766079993351,0.001,2849.7,2849.1,0.585]
[1766079993551,0.001,2849.7,2848.8,0.3748]
[1766079993756,0.001,2849.7,2849.0,0.585]
[1766079994263,0.001,2849.7,2849.1,0.585]
[1766079994749,0.001,2849.7,2849.0,0.585]
[1766079995085,0.0815545,2849.6,2848.6,7.8743]
[1766079995385,0.001,2849.7,2848.6,7.8743]
[1766079995386,0.0815545,2849.5,2848.6,4.09543138]
[1766079995581,0.0815545,2849.5,2848.6,1.81945314]
[1766079995884,0.0815545,2849.5,2848.6,5.32992214]
[1766079996094,0.001,2849.7,2848.6,4.47025682]
[1766079996383,0.001,2849.7,2848.7,0.3748]
[1766079997556,0.001,2849.7,2848.6,11.96975682]
[1766079997557,0.001,2849.7,2848.9,7.8743]
[1766079997875,0.001,2849.7,2849.2,0.3748]
[1766079998059,0.54593473,2850.6,2849.5,0.3748]
[1766079998060,0.0815545,2850.6,2849.5,0.3748]
[1766079998271,0.0835545,2851.2,2849.8,7.8743]
[1766079998468,0.0835545,2851.2,2849.9,0.584]
[1766079998682,0.001,2850.9,2849.9,0.584]
[1766079998980,0.001,2850.9,2850.1,0.3748]
[1766079999288,0.001,2850.7,2850.1,0.3748]
[1766079999667,0.001,2850.7,2850.1,3.88344318]
[1766079999870,0.001,2850.7,2850.2,0.97234432]
[1766080000393,0.001,2850.9,2850.4,0.3748]
[1766080000592,0.0835545,2850.8,2849.8,0.84583]
[1766080000792,0.002,2850.3,2849.4,0.584]
[1766080000994,0.0815545,2850.2,2849.0,0.83918023]
[1766080001197,0.0835545,2850.2,2849.1,1.45534802]
[1766080002773,0.0835545,2850.2,2849.1,4.96520849]
[1766080003085,0.0815545,2849.7,2848.6,0.002]
[1766080003291,0.002,2849.6,2848.6,0.002]
[1766080003479,0.0815545,2849.5,2848.6,0.002]
[1766080003683,0.0815545,2849.5,2848.6,3.51247099]
[1766080003867,0.0815545,2849.5,2848.7,0.584]
[1766080004200,0.0835545,2849.7,2848.7,0.584]
[1766080004366,0.0815545,2849.5,2848.7,0.584]
[1766080004568,0.0815545,2849.7,2848.8,8.0538]
[1766080004867,0.0815545,2850.4,2849.3,7.6973]
[1766080005072,0.0815545,2850.6,2849.5,0.3565]
[1766080005374,0.0815545,2850.8,2849.7,7.6973]
[1766080005574,0.0815545,2850.8,2849.8,4.09299142]
[1766080005794,0.003,2850.9,2849.9,7.6973]
[1766080005795,0.001,2850.9,2849.9,7.6973]
[1766080005967,0.001,2850.9,2849.8,0.584]
[1766080006292,0.0815545,2850.8,2849.9,0.584]
[1766080007068,0.001,2850.9,2849.9,0.584]
[1766080007069,0.001,2850.9,2850.0,7.6973]
[1766080007274,0.001,2851.1,2850.0,7.6973]
[1766080007476,0.001,2851.1,2850.6,7.6973]
[1766080007697,0.001,2851.9,2850.8,3.50778728]
[1766080007874,0.001,2851.9,2850.9,8.0538]
[1766080008193,0.001,2851.9,2851.0,0.3565]
[1766080008394,0.001,2851.9,2851.1,0.584]
[1766080009608,0.0815545,2851.8,2851.0,0.584]
[1766080009808,0.0815545,2851.8,2850.7,1.12623]
[1766080010009,0.001,2851.9,2850.9,0.3565]
[1766080010208,0.0815545,2851.8,2851.0,0.584]
[1766080010419,0.001,2851.9,2851.0,0.584]
[1766080010778,0.001,2851.9,2851.0,0.9405]
[1766080011003,0.001,2851.9,2851.0,4.44803349]
[1766080011308,0.001,2851.9,2851.1,0.44480335]
[1766080011503,0.001,2851.9,2851.0,4.44803349]
[1766080011504,0.001,2851.9,2851.0,8.6378]
[1766080011704,0.001,2851.9,2851.0,0.3565]
[1766080011952,0.001,2851.9,2851.1,0.584]
[1766080012121,0.001,2851.9,2851.1,0.9405]
[1766080012413,0.001,2851.9,2851.2,0.3565]
[1766080012622,0.001,2851.9,2851.3,0.584]
[1766080012782,0.003,2851.6,2850.5,3.50810472]
[1766080012981,0.0845545,2851.8,2850.7,0.3565]
[1766080013302,0.001,2851.9,2850.8,8.0538]
[1766080013478,0.0815545,2851.8,2850.8,0.3565]
[1766080013789,0.0815545,2851.6,2850.8,8.6378]
[1766080013983,0.0815545,2851.6,2850.8,0.9405]
[1766080014179,0.0815545,2851.8,2850.8,0.584]
[1766080014374,0.0815545,2851.8,2850.8,0.9405]
[1766080014594,0.44084323,2851.8,2850.8,0.9405]
[1766080014917,0.44084323,2851.8,2851.0,0.002]
[1766080015078,0.0815545,2851.8,2851.0,8.0558]
[1766080015286,0.001,2851.9,2851.0,8.0558]
[1766080015475,0.001,2851.9,2850.3,7.6973]
[1766080015476,0.0815545,2851.6,2850.3,7.6973]
[1766080015690,0.0815545,2851.6,2850.4,0.583]
[1766080015691,0.0825545,2851.4,2850.4,0.583]
[1766080015894,0.0815545,2851.0,2850.0,0.3565]
[1766080016097,0.0815545,2851.0,2850.1,0.583]
[1766080016398,0.0815545,2851.2,2850.1,0.583]
[1766080016993,0.0825545,2851.0,2849.9,3.51088897]
[1766080017252,0.0815545,2850.6,2849.3,0.76973]
[1766080017526,0.0815545,2850.2,2848.8,0.3585]
[1766080017726,0.0815545,2849.8,2848.8,0.002]
[1766080017893,0.0815545,2849.5,2848.8,0.002]
[1766080018094,0.0815545,2850.0,2848.8,0.002]
[1766080018641,0.54593473,2850.0,2848.8,0.002]
[1766080019004,0.0815545,2850.2,2848.9,0.583]
[1766080019331,0.0815545,2850.2,2848.8,0.002]
[1766080019332,0.0815545,2849.8,2848.8,0.002]
[1766080019535,0.0815545,2849.8,2848.8,0.585]
[1766080019894,0.0815545,2850.2,2848.8,0.585]
[1766080020095,0.0815545,2850.0,2848.8,1.35124896]
[1766080020297,0.0815545,2850.4,2849.3,7.6973]
[1766080020629,0.0815545,2850.4,2849.4,0.9395]
[1766080020813,0.0815545,2850.7,2849.5,0.3744]
[1766080021018,0.0815545,2850.3,2849.0,0.3744]
[1766080021195,0.0815545,2850.1,2849.4,0.583]
[1766080021397,0.0815545,2850.1,2849.0,0.583]
[1766080021599,0.0815545,2849.6,2848.8,0.002]
[1766080021820,0.0815545,2849.6,2848.6,0.585]
[1766080022033,0.0815545,2849.4,2848.6,0.585]
[1766080022241,0.0815545,2849.4,2847.8,0.3744]
[1766080022559,0.0815545,2848.1,2846.5,11.78715918]
[1766080022833,0.0815545,2847.9,2846.8,0.583]
[1766080023031,0.0815545,2847.7,2846.8,0.583]
[1766080023440,0.0815545,2847.7,2846.4,3.88957074]
[1766080023642,0.0815545,2847.7,2846.5,0.79858989]
[1766080024149,0.0815545,2847.7,2847.6,0.002]
[1766080024312,0.46438023,2848.1,2846.5,4.3116384]
[1766080024514,0.583,2848.4,2847.0,7.8997]
[1766080024827,0.0815545,2848.3,2846.9,0.3744]
[1766080025133,0.0815545,2848.1,2846.9,0.3744]
[1766080025335,0.0815545,2848.5,2847.2,0.3744]
[1766080025512,0.405504,2848.8,2847.5,0.3744]
[1766080025717,0.0815545,2848.9,2847.6,8.2741]
[1766080025914,0.0815545,2848.9,2847.7,0.3744]
[1766080026153,0.0815545,2848.7,2847.7,0.3744]
[1766080026334,0.0815545,2848.3,2847.0,0.3744]
[1766080026664,0.6645545,2848.6,2847.1,8.2741]
[1766080026814,0.0815545,2848.4,2847.3,7.8997]
[1766080027014,0.0815545,2848.4,2847.2,1.20181]
[1766080027359,0.0815545,2848.4,2847.2,8.2741]
[1766080027659,0.0815545,2848.0,2846.6,8.2741]
[1766080027853,0.0815545,2848.0,2846.6,0.583]
[1766080028014,0.0815545,2848.2,2847.0,7.8997]
[1766080028215,0.0815545,2848.2,2847.2,8.2741]
[1766080028470,0.0815545,2848.2,2846.7,0.3744]
[1766080028471,0.0815545,2848.0,2846.7,0.3744]
[1766080028614,0.0815545,2847.8,2846.7,7.8997]
[1766080028814,0.0815545,2847.8,2846.7,8.2741]
[1766080029417,0.0815545,2847.6,2846.5,0.002]
[1766080029617,0.0815545,2847.4,2846.5,0.002]
[1766080030048,0.0815545,2847.8,2846.6,7.8997]
[1766080030232,0.0815545,2847.8,2846.7,1.16457]
[1766080030432,0.0815545,2847.8,2846.5,0.002]
[1766080030653,0.0815545,2847.8,2846.6,0.3744]
[1766080030860,0.0815545,2847.8,2846.5,0.002]
[1766080031075,0.0815545,2847.4,2846.5,0.002]
[1766080031228,0.0815545,2847.2,2846.5,0.002]
[1766080031571,0.0815545,2847.2,2847.1,0.002]
[1766080031750,0.0815545,2847.2,2846.5,0.002]
[1766080032080,3.59378198,2847.2,2846.5,0.002]
[1766080032238,0.0815545,2847.0,2846.5,0.002]
[1766080032437,0.0795545,2846.8,2846.0,0.002]
[1766080033076,0.0815545,2846.4,2844.9,0.371]
[1766080033365,0.0815545,2845.9,2844.9,0.002]
[1766080033531,0.583,2846.0,2844.9,0.002]
[1766080033724,0.0815545,2845.9,2844.9,0.002]
[1766080033964,0.0815545,2846.1,2845.0,7.7213]
[1766080034155,3.59458708,2846.6,2845.0,7.7213]
[1766080034156,0.0815545,2846.3,2845.4,0.369]
[1766080034348,0.0815545,2846.1,2844.9,0.81123]
[1766080034545,0.0815545,2846.1,2844.9,0.002]
[1766080034746,0.0815545,2845.5,2844.9,0.002]
[1766080035159,0.0815545,2845.3,2844.9,0.002]
[1766080035358,0.0815545,2845.5,2844.9,0.002]
[1766080035731,0.0815545,2846.1,2845.1,0.369]
[1766080035928,0.0815545,2846.1,2845.1,8.0903]
[1766080036132,0.0815545,2845.9,2844.9,0.002]
[1766080036327,0.405504,2845.6,2844.9,0.002]
[1766080036532,0.0815545,2845.5,2844.9,0.002]
[1766080037337,0.0815545,2845.7,2844.9,0.002]
[1766080037567,0.0815545,2845.5,2844.9,0.002]
[1766080038346,0.0815545,2845.4,2844.9,0.002]
[1766080038543,0.0815545,2845.4,2844.2,0.583]
[1766080038544,0.0815545,2845.2,2844.2,0.583]
[1766080039451,0.0815545,2845.2,2843.8,0.002]
[1766080039452,0.405504,2844.9,2843.8,0.002]
[1766080039770,0.0815545,2844.6,2843.8,0.002]
[1766080040077,0.0815545,2844.4,2843.8,0.002]
[1766080040374,0.0815545,2844.6,2843.8,0.002]
[1766080040886,1.8308499,2846.8,2844.0,0.369]
[1766080041034,0.0815545,2845.2,2844.3,0.369]
[1766080041376,0.0815545,2845.0,2844.0,0.583]
[1766080041680,0.0815545,2845.4,2844.5,8.0903]
[1766080041837,0.0815545,2845.3,2844.2,0.46438023]
[1766080042049,0.0815545,2845.3,2844.3,0.81856802]
[1766080042249,0.0815545,2845.1,2844.2,0.83338023]
[1766080042450,0.0815545,2845.3,2843.8,0.002]
[1766080042451,0.0815545,2845.0,2843.8,0.002]
[1766080042652,0.0815545,2845.7,2844.5,0.369]
[1766080042884,0.0815545,2845.7,2844.6,0.583]
[1766080043088,0.0815545,2845.5,2844.6,0.583]
[1766080043748,0.0815545,2845.5,2844.3,3.51578741]
[1766080043952,0.0815545,2846.5,2845.0,7.7213]
[1766080044178,0.0815545,2846.5,2845.1,0.369]
[1766080044179,0.0815545,2846.1,2845.1,0.369]
[1766080044386,0.0815545,2846.3,2845.2,7.39838282]
[1766080044545,0.0815545,2846.3,2845.2,15.11968282]
[1766080044749,0.0815545,2846.3,2845.3,1.51196828]
[1766080044950,0.0815545,2845.8,2844.7,0.583]
[1766080045193,0.0815545,2845.6,2844.7,0.583]
[1766080045349,0.0815545,2845.6,2844.7,4.09830098]
[1766080045551,0.0815545,2845.6,2844.7,0.583]
[1766080045816,0.0815545,2847.8,2845.1,7.02962988]
[1766080045988,0.0815545,2846.4,2845.2,0.70296299]
[1766080046175,0.0815545,2846.2,2845.2,0.46438023]
[1766080046398,0.0815545,2846.2,2845.0,0.583]
[1766080046612,0.0815545,2846.1,2845.0,0.583]
[1766080047213,0.0815545,2845.9,2845.0,0.583]
[1766080047704,0.0815545,2846.4,2845.0,0.583]
[1766080047903,0.001,2846.5,2845.0,0.583]
[1766080047904,0.0825545,2846.5,2845.1,0.46438023]
[1766080048092,0.0815545,2846.1,2845.1,0.46438023]
[1766080048301,0.0815545,2845.9,2845.1,0.46438023]
[1766080048615,0.0815545,2845.9,2844.6,0.583]
[1766080048616,0.0815545,2845.5,2844.6,0.583]
[1766080049115,0.0815545,2845.3,2844.5,3.51552527]
[1766080049323,0.0815545,2845.5,2844.4,0.85285897]
[1766080049481,0.0815545,2845.7,2844.7,3.88422726]
[1766080049884,0.0815545,2845.7,2844.7,0.369]
[1766080050110,0.0815545,2845.7,2844.7,0.83338023]
[1766080050320,0.001,2846.5,2845.0,0.369]
[1766080050517,0.0815545,2846.1,2844.3,0.002]
[1766080050679,0.405504,2845.8,2844.7,0.46438023]
[1766080051010,0.405504,2845.8,2844.5,0.583]
[1766080051011,0.405504,2845.4,2844.5,0.583]
[1766080051175,0.0815545,2845.7,2844.5,4.09849367]
[1766080051376,0.0815545,2845.9,2844.5,1.04738023]
[1766080051377,0.405504,2845.8,2844.5,1.04738023]
[1766080051589,0.0815545,2845.7,2844.5,1.08593766]
[1766080051792,0.0815545,2845.7,2844.5,0.583]
[1766080051793,0.405504,2845.6,2844.5,0.583]
[1766080052012,0.405504,2845.6,2844.6,0.46438023]
[1766080052306,0.0815545,2845.7,2844.6,3.51540484]
[1766080052506,0.0815545,2845.9,2844.6,3.51540484]
[1766080052707,0.405504,2845.8,2844.6,3.51540484]
[1766080053011,0.405504,2845.9,2844.8,0.369]
[1766080053792,0.405504,2846.0,2844.9,0.369]
[1766080053994,0.54593473,2846.1,2844.9,0.369]
[1766080053995,0.0815545,2846.1,2844.9,0.369]
[1766080054395,0.54593473,2846.1,2844.9,0.369]
[1766080054594,0.001,2845.9,2844.9,0.369]
[1766080054818,0.001,2845.9,2844.9,3.51505388]
[1766080055014,3.51254001,2847.0,2845.1,0.46438023]
[1766080055215,4.09523489,2847.2,2845.3,0.46438023]
[1766080055392,3.59496467,2847.1,2845.4,8.3043]
[1766080055597,0.405504,2846.7,2845.5,0.83043]
[1766080055814,0.405504,2846.7,2845.5,0.0351432]
[1766080056113,0.0825545,2847.1,2845.4,0.583]
[1766080056313,0.0825545,2847.1,2845.6,0.46438023]
[1766080056517,0.54693473,2847.1,2845.7,3.51407386]
[1766080056817,0.405504,2846.9,2845.7,3.51407386]
[1766080057121,0.405504,2847.0,2845.7,7.02814772]
[1766080057282,0.001,2847.1,2846.2,0.369]
[1766080057482,0.001,2847.1,2846.3,8.6733]
[1766080057683,0.001,2847.1,2846.4,0.369]
[1766080057907,0.001,2847.1,2846.3,0.583]
[1766080057908,0.0825545,2848.4,2847.0,0.369]
[1766080058097,3.51098777,2848.3,2847.1,0.583]
[1766080058395,0.0815545,2848.0,2846.5,3.51308624]
[1766080058606,0.405504,2847.7,2846.3,0.583]
[1766080058781,0.405504,2847.1,2845.8,0.369]
[1766080059115,0.405504,2846.4,2845.5,0.583]
[1766080059416,0.0815545,2846.5,2845.5,0.583]
[1766080059715,0.0815545,2846.7,2845.5,0.99274442]
[1766080059916,0.0815545,2847.4,2845.5,0.99274442]
[1766080059917,0.0815545,2847.4,2846.0,3.51362432]
[1766080060114,0.0815545,2847.4,2846.0,0.583]
[1766080060484,0.0815545,2847.0,2846.0,0.583]
[1766080060714,0.405504,2846.9,2845.8,0.46438023]
[1766080060925,0.405504,2846.9,2845.6,8.0903]
[1766080060926,0.0815545,2846.8,2845.7,0.46438023]
[1766080061295,0.0815545,2846.8,2845.8,0.46438023]
[1766080061490,0.0815545,2846.8,2845.7,0.46438023]
[1766080062024,0.0815545,2846.8,2845.7,3.97840226]
[1766080062223,0.405504,2846.9,2845.7,0.46438023]
[1766080062519,0.0815545,2846.6,2845.5,0.002]
[1766080062716,0.0815545,2846.6,2845.5,0.90221802]
[1766080062923,0.405504,2846.7,2845.7,7.9528]
[1766080063100,0.405504,2846.7,2845.8,7.9879395]
[1766080063293,0.405504,2846.7,2845.8,7.9528]
[1766080063490,0.405504,2846.7,2845.8,0.3498]
[1766080063798,0.0815545,2847.0,2845.6,7.603]
[1766080064012,0.0815545,2847.0,2845.9,0.3498]
[1766080064321,0.405504,2846.7,2845.5,0.585]
[1766080064692,0.405504,2846.7,2845.5,4.09923175]
[1766080065090,0.86988423,2846.7,2845.5,4.09928758]
[1766080065418,0.405504,2846.5,2845.5,0.585]
[1766080065619,0.0815545,2846.4,2845.5,0.585]
[1766080066008,0.405504,2846.3,2845.5,0.002]
[1766080066411,0.0815545,2846.4,2845.5,0.002]
[1766080067510,0.0815545,2846.6,2845.5,0.002]
[1766080068095,0.405504,2846.7,2845.5,7.9548]
[1766080068316,0.405504,2846.7,2845.5,8.75028]
[1766080068825,0.405504,2846.7,2845.5,4.66153042]
[1766080069011,0.405504,2846.5,2845.5,0.584]
[1766080069213,0.0815545,2846.4,2845.5,0.584]
[1766080069890,0.0815545,2846.4,2845.5,0.002]
[1766080070826,0.0815545,2846.2,2845.5,0.002]
[1766080071003,0.45462056,2846.2,2845.5,0.002]
[1766080071323,0.405504,2846.3,2845.5,0.002]
[1766080071494,0.582,2846.5,2845.5,0.002]
[1766080071695,0.582,2846.5,2845.5,0.3518]
[1766080071908,0.582,2846.5,2845.6,7.9528]
[1766080072110,0.54593473,2847.0,2845.6,7.9528]
[1766080072315,0.40593416,2846.9,2845.7,0.79548]
[1766080072718,0.0815545,2846.8,2845.7,1.37748]
[1766080072928,0.405504,2846.3,2845.5,0.002]
[1766080073626,0.582,2846.5,2845.5,0.002]
[1766080073802,0.582,2846.5,2845.5,3.51625711]
[1766080073998,0.582,2846.5,2845.6,0.35162571]
[1766080074198,0.46438023,2846.9,2845.6,7.603]
[1766080074517,0.0815545,2846.8,2845.7,0.9318]
[1766080074721,0.0815545,2846.8,2845.7,4.44583492]
[1766080074927,0.001,2847.1,2845.9,7.9528]